bitfinex/quotes_BTCUSD_20250204
["timestamp","ask_amount","ask_price","bid_price","bid_amount"]
[1738652599336,0.76929795,99258.0,99257.0,0.002]
[1738652599565,2.47424796,99258.0,99257.0,0.002]
[1738652599755,2.47424796,99258.0,99257.0,0.001]
[1738652599965,0.151167,99228.0,99212.0,0.0758]
[1738652600173,0.15,99239.0,99206.0,0.0483]
[1738652600385,0.151185,99217.0,99208.0,0.151196]
[1738652600600,0.151162,99232.0,99222.0,0.151175]
[1738652600820,0.00832,99243.0,99221.0,0.20157]
[1738652601036,0.16377761,99270.0,99239.0,0.151149]
[1738652601037,0.151136,99249.0,99239.0,0.151149]
[1738652601239,0.15114,99246.0,99230.0,0.16377761]
[1738652601452,0.0058028,99248.0,99222.0,0.08404016]
[1738652601723,0.00483081,99245.0,99231.0,0.10238506]
[1738652601934,0.15114,99246.0,99231.0,0.10238506]
[1738652602140,0.151138,99247.0,99238.0,0.151151]
[1738652602340,0.00579697,99245.0,99239.0,0.001]
[1738652602542,0.151144,99243.0,99239.0,0.001]
[1738652602696,0.151145,99243.0,99234.0,0.151156]
[1738652602882,0.00579114,99242.0,99232.0,0.201547]
[1738652603079,0.00014187,99249.0,99231.0,0.001]
[1738652603529,0.0072535,99248.0,99247.0,0.151136]
[1738652603942,0.00014187,99249.0,99245.0,0.201519]
[1738652604140,0.00014187,99249.0,99247.0,0.151137]
[1738652604391,0.00873821,99248.0,99247.0,0.151137]
[1738652604808,0.00014187,99249.0,99247.0,0.151137]
[1738652605007,0.00014187,99249.0,99247.0,0.15247698]
[1738652605269,0.00874136,99248.0,99247.0,0.151137]
[1738652605513,0.00014187,99249.0,99247.0,0.151137]
[1738652605725,0.00014187,99249.0,99232.0,0.201547]
[1738652605861,0.00014187,99249.0,99244.0,0.151142]
[1738652606067,0.00875086,99248.0,99244.0,0.151141]
[1738652606263,0.01175086,99248.0,99232.0,0.201547]
[1738652606493,0.003,99248.0,99220.0,0.16377761]
[1738652606693,0.151137,99248.0,99238.0,0.151151]
[1738652606910,0.00656193,99247.0,99235.0,0.151155]
[1738652607109,0.151139,99246.0,99244.0,0.001]
[1738652607321,0.15988231,99246.0,99244.0,0.001]
[1738652607552,0.151155,99236.0,99228.0,0.151165]
[1738652607753,0.151152,99238.0,99229.0,0.151164]
[1738652607956,0.0087077,99235.0,99230.0,0.151163]
[1738652608156,0.201529,99242.0,99234.0,0.001]
[1738652608418,0.201518,99247.0,99238.0,0.001]
[1738652608601,0.15115,99239.0,99238.0,0.001]
[1738652608811,0.151147,99241.0,99238.0,0.001]
[1738652609215,0.15115,99239.0,99238.0,0.001]
[1738652609858,0.15987065,99239.0,99238.0,0.001]
[1738652610067,0.15987065,99239.0,99231.0,0.151162]
[1738652610623,0.15987065,99239.0,99230.0,0.001]
[1738652610624,0.00872065,99239.0,99233.0,0.151159]
[1738652610825,0.151142,99245.0,99232.0,0.201546]
[1738652611043,0.201518,99247.0,99238.0,0.001]
[1738652611044,0.15986837,99244.0,99238.0,0.001]
[1738652611452,0.15986837,99244.0,99234.0,0.151156]
[1738652611651,0.15986837,99244.0,99233.0,0.201545]
[1738652611652,0.15986837,99244.0,99235.0,0.151155]
[1738652611899,0.151149,99240.0,99233.0,0.001]
[1738652612099,0.151149,99240.0,99232.0,0.001]
[1738652612300,0.00871047,99239.0,99238.0,0.001]
[1738652612511,0.151146,99242.0,99238.0,0.001]
[1738652612712,0.00871471,99239.0,99233.0,0.151159]
[1738652612957,0.151146,99242.0,99235.0,0.001]
[1738652613196,0.151142,99244.0,99235.0,0.001]
[1738652613398,0.00872118,99241.0,99236.0,0.201539]
[1738652613605,0.151137,99248.0,99237.0,0.201537]
[1738652613764,0.00014187,99249.0,99242.0,0.151145]
[1738652613960,0.0087406,99247.0,99240.0,0.151147]
[1738652614331,0.00873737,99246.0,99237.0,0.151153]
[1738652614509,0.00873737,99246.0,99236.0,0.201539]
[1738652614643,0.00873737,99246.0,99238.0,0.001]
[1738652614848,0.00873737,99246.0,99236.0,0.201539]
[1738652615058,0.00873737,99246.0,99230.0,0.16377761]
[1738652615259,0.00873737,99246.0,99242.0,0.151145]
[1738652615461,0.00014187,99249.0,99242.0,0.151145]
[1738652615666,0.00874384,99248.0,99240.0,0.152147]
[1738652615906,0.00874384,99248.0,99240.0,0.001]
[1738652616338,0.00874384,99248.0,99246.0,0.151138]
[1738652617149,0.00874384,99248.0,99246.0,0.15247799]
[1738652617380,0.00014187,99249.0,99248.0,0.151136]
[1738652617788,0.00014187,99249.0,99248.0,0.15247586]
[1738652618277,0.00014187,99249.0,99248.0,0.25486092]
[1738652618491,0.00014187,99249.0,99248.0,0.25452106]
[1738652618669,0.00014187,99249.0,99248.0,0.25552106]
[1738652618917,0.00014187,99249.0,99248.0,0.25352106]
[1738652619321,0.00014187,99249.0,99248.0,0.25552106]
[1738652619916,0.00014187,99249.0,99248.0,0.153136]
[1738652620535,0.00014187,99249.0,99248.0,0.151136]
[1738652620923,0.00014187,99249.0,99248.0,0.152136]
[1738652621903,0.00014187,99249.0,99248.0,0.153136]
[1738652622364,0.00014187,99249.0,99248.0,0.002]
[1738652622782,0.00014187,99249.0,99248.0,0.153136]
[1738652623012,0.00014187,99249.0,99248.0,0.002]
[1738652623207,0.00014187,99249.0,99248.0,0.153136]
[1738652623410,0.00014187,99249.0,99248.0,0.002]
[1738652623781,0.151136,99248.0,99239.0,0.151149]
[1738652623985,0.151138,99247.0,99239.0,0.151149]
[1738652624163,0.00875584,99247.0,99240.0,0.151148]
[1738652624367,0.151136,99248.0,99240.0,0.151148]
[1738652624631,0.0087526,99246.0,99240.0,0.151148]
[1738652624808,0.00875584,99247.0,99240.0,0.151148]
[1738652625038,0.00874937,99245.0,99240.0,0.151148]
[1738652625251,0.0087526,99246.0,99241.0,0.151146]
[1738652625462,0.00874613,99244.0,99226.0,0.01]
[1738652625664,0.00874937,99245.0,99241.0,0.151147]
[1738652625877,0.00014187,99249.0,99241.0,0.151147]
[1738652626075,0.00873831,99244.0,99240.0,0.001]
[1738652626284,0.00873831,99244.0,99243.0,0.151144]
[1738652626492,0.00014187,99249.0,99240.0,0.001]
[1738652627119,0.00874992,99248.0,99240.0,0.002]
[1738652627320,0.00874992,99248.0,99247.0,0.151138]
[1738652628673,0.00874992,99248.0,99247.0,0.152138]
[1738652628870,0.00874992,99248.0,99247.0,0.153138]
[1738652631514,0.00874992,99248.0,99247.0,0.56816303]
[1738652631743,0.00014187,99249.0,99248.0,0.324136]
[1738652631949,0.00014187,99249.0,99248.0,0.42652106]
[1738652633057,8.7e-07,99249.0,99248.0,0.42652106]
[1738652633932,8.7e-07,99249.0,99248.0,0.40352106]
[1738652634163,8.7e-07,99249.0,99248.0,0.40452106]
[1738652634419,8.7e-07,99249.0,99248.0,0.40552106]
[1738652634589,8.7e-07,99249.0,99248.0,0.40452106]
[1738652637477,8.7e-07,99249.0,99248.0,0.40552106]
[1738652638873,8.7e-07,99249.0,99248.0,0.42852106]
[1738652640316,8.7e-07,99249.0,99248.0,0.44852106]
[1738652641055,8.7e-07,99249.0,99248.0,0.85192106]
[1738652641269,6.5e-07,99259.0,99257.0,0.01]
[1738652641447,6.5e-07,99259.0,99258.0,0.57784543]
[1738652641631,6.5e-07,99259.0,99258.0,0.57650606]
[1738652642164,6.5e-07,99259.0,99258.0,0.79650606]
[1738652642814,6.5e-07,99272.0,99271.0,0.423101]
[1738652643024,1.5e-07,99280.0,99279.0,0.344089]
[1738652643249,9.5e-07,99280.0,99279.0,0.56827406]
[1738652643478,9.5e-07,99280.0,99279.0,0.5936472]
[1738652643917,9.5e-07,99280.0,99279.0,0.56827406]
[1738652644354,9.5e-07,99280.0,99279.0,0.55827406]
[1738652644572,9.5e-07,99280.0,99279.0,0.25347406]
[1738652645448,9.5e-07,99280.0,99279.0,0.001]
[1738652645664,0.07680095,99280.0,99279.0,0.152089]
[1738652645886,9.5e-07,99280.0,99279.0,0.151089]
[1738652646106,0.00751895,99280.0,99279.0,0.151089]
[1738652646317,9.5e-07,99280.0,99279.0,0.151089]
[1738652646528,9.5e-07,99280.0,99279.0,0.152089]
[1738652648065,9.5e-07,99280.0,99279.0,0.151089]
[1738652648283,9.5e-07,99280.0,99279.0,0.1534285]
[1738652648492,9.5e-07,99280.0,99279.0,0.25547406]
[1738652649149,9.5e-07,99280.0,99279.0,0.002]
[1738652649590,9.5e-07,99280.0,99279.0,0.153089]
[1738652650003,9.5e-07,99280.0,99279.0,0.002]
[1738652650790,0.00749946,99280.0,99279.0,0.002]
[1738652651197,0.00749946,99280.0,99279.0,0.153089]
[1738652651411,9.5e-07,99280.0,99279.0,0.153089]
[1738652653186,0.00022503,99280.0,99279.0,0.153089]
[1738652655693,0.00022503,99280.0,99279.0,0.25681359]
[1738652655874,0.00022503,99280.0,99279.0,0.25547406]
[1738652656585,0.00022503,99280.0,99279.0,0.42847406]
[1738652656834,0.00022503,99280.0,99279.0,0.42747406]
[1738652657042,0.00022503,99280.0,99279.0,0.43747406]
[1738652657451,0.00022503,99280.0,99279.0,0.43847406]
[1738652657669,0.00022503,99280.0,99279.0,0.4638472]
[1738652657891,0.00022503,99280.0,99279.0,0.4628472]
[1738652658084,0.00022503,99280.0,99279.0,0.43747406]
[1738652658508,0.00022503,99280.0,99279.0,0.43847406]
[1738652658710,0.00022503,99280.0,99279.0,0.42747406]
[1738652658947,0.00022503,99280.0,99279.0,0.25447406]
[1738652659716,0.00022503,99280.0,99279.0,0.25347406]
[1738652659925,0.00022503,99280.0,99279.0,0.151089]
[1738652660551,0.0775,99279.0,99265.0,0.201479]
[1738652660701,0.0775,99279.0,99278.0,0.15109]
[1738652661537,0.0775,99279.0,99271.0,0.201466]
[1738652661710,0.0775,99279.0,99274.0,0.151095]
[1738652661913,0.0775,99279.0,99278.0,0.15109]
[1738652662114,0.00022503,99280.0,99279.0,0.151089]
[1738652662367,0.00022503,99280.0,99278.0,0.15109]
[1738652662538,0.00022503,99280.0,99276.0,0.151093]
[1738652662814,0.00022503,99280.0,99277.0,0.151092]
[1738652663042,0.00022503,99280.0,99275.0,0.201459]
[1738652663184,0.00022503,99280.0,99267.0,0.201476]
[1738652663386,0.00022503,99280.0,99269.0,0.201472]
[1738652663640,0.00022503,99280.0,99275.0,0.151093]
[1738652663837,0.00022503,99280.0,99273.0,0.201464]
[1738652664057,0.00022503,99280.0,99278.0,0.15109]
[1738652664209,0.00022503,99280.0,99277.0,0.15109]
[1738652664408,0.00022503,99280.0,99279.0,0.151089]
[1738652664615,0.00022503,99280.0,99270.0,0.10238506]
[1738652664820,0.00022503,99280.0,99279.0,0.151089]
[1738652665243,0.00022503,99280.0,99276.0,0.151093]
[1738652665880,0.00022503,99280.0,99270.0,0.10238506]
[1738652666071,0.00022503,99280.0,99279.0,0.151089]
[1738652666300,0.00022503,99280.0,99279.0,0.14662854]
[1738652667166,0.00022503,99280.0,99279.0,0.2490136]
[1738652667330,0.00022503,99280.0,99279.0,0.24767406]
[1738652667941,0.00022503,99280.0,99279.0,0.43067406]
[1738652672200,0.00022503,99280.0,99279.0,0.44067406]
[1738652673829,0.00022503,99280.0,99279.0,0.67946437]
[1738652674973,0.00022503,99280.0,99279.0,0.48646437]
[1738652675370,0.00022503,99280.0,99279.0,0.41646437]
[1738652676211,0.00022503,99280.0,99279.0,0.41668844]
[1738652678264,0.00022503,99280.0,99279.0,0.43968844]
[1738652678478,0.00022503,99280.0,99279.0,0.52668844]
[1738652678645,0.00022503,99280.0,99279.0,0.51668844]
[1738652679108,0.00022503,99280.0,99279.0,0.52668844]
[1738652679300,0.00022503,99280.0,99279.0,0.51668844]
[1738652679438,0.00022503,99280.0,99279.0,0.43968844]
[1738652679911,0.00022503,99280.0,99279.0,0.44968844]
[1738652680079,0.00022503,99280.0,99279.0,0.41668844]
[1738652681711,0.00022503,99280.0,99279.0,0.26668844]
[1738652681936,0.00022503,99280.0,99279.0,0.17010338]
[1738652682143,0.00022503,99280.0,99279.0,0.01901438]
[1738652682553,0.00022503,99280.0,99279.0,0.00022407]
[1738652682984,0.00774331,99280.0,99279.0,0.00022407]
[1738652683966,0.00022503,99280.0,99279.0,0.00022407]
[1738652684173,0.00774331,99280.0,99279.0,0.00022407]
[1738652684377,0.00022503,99280.0,99279.0,0.00022407]
[1738652685420,0.00022503,99280.0,99279.0,0.00156362]
[1738652685648,0.00022503,99280.0,99279.0,0.00022407]
[1738652686076,0.00022503,99280.0,99279.0,0.10394859]
[1738652687464,0.00022503,99280.0,99279.0,0.27694859]
[1738652687673,0.00022503,99280.0,99279.0,0.29439745]
[1738652688466,0.00022503,99280.0,99279.0,0.3244598]
[1738652689724,0.00022503,99280.0,99279.0,0.4077598]
[1738652690155,0.00022503,99280.0,99279.0,0.37769745]
[1738652690296,0.00022503,99280.0,99279.0,0.38769745]
[1738652691213,0.00022503,99280.0,99279.0,0.60769745]
[1738652691419,0.00022503,99280.0,99279.0,0.93939745]
[1738652691618,0.00022503,99280.0,99279.0,0.96824696]
[1738652692613,0.00022408,99280.0,99279.0,0.99829817]
[1738652692820,0.151013,99329.0,99320.0,0.151026]
[1738652693084,0.00014183,99325.0,99317.0,0.201375]
[1738652693293,0.00014183,99325.0,99290.0,0.16346198]
[1738652693464,0.00767939,99324.0,99310.0,0.201387]
[1738652693664,0.15103,99318.0,99310.0,0.201387]
[1738652693951,0.00767939,99324.0,99311.0,0.16982832]
[1738652694164,0.00014183,99325.0,99311.0,0.01878832]
[1738652694365,0.151039,99312.0,99311.0,0.01878832]
[1738652694795,1.6586796,99312.0,99311.0,0.01878832]
[1738652695242,0.1586796,99312.0,99311.0,0.01878832]
[1738652695487,0.201389,99311.0,99297.0,0.15106]
[1738652695739,0.1271,99311.0,99290.0,0.16346198]
[1738652695975,0.1271,99311.0,99304.0,0.151051]
[1738652696209,0.00763414,99310.0,99304.0,0.151051]
[1738652696691,0.00763414,99310.0,99308.0,0.151044]
[1738652697902,0.1271,99311.0,99308.0,0.151044]
[1738652698669,0.0494,99311.0,99310.0,0.151042]
[1738652698871,0.0494,99311.0,99302.0,0.201405]
[1738652699008,0.0494,99311.0,99299.0,0.20141]
[1738652699215,0.0001067,99310.0,99299.0,0.20141]
[1738652699415,0.0076309,99309.0,99296.0,0.201417]
[1738652699622,0.0076309,99309.0,99301.0,0.151054]
[1738652699834,0.0076309,99309.0,99297.0,0.10238506]
[1738652700040,0.0076309,99309.0,99304.0,0.15105]
[1738652700241,0.0076309,99309.0,99299.0,0.201411]
[1738652700450,0.0076309,99309.0,99305.0,0.151049]
[1738652700694,0.0076309,99309.0,99308.0,0.151045]
[1738652701109,0.0001067,99310.0,99308.0,0.151045]
[1738652701929,0.0001067,99310.0,99297.0,0.10238506]
[1738652702139,0.0803,99303.0,99281.0,0.201448]
[1738652702383,0.231353,99303.0,99282.0,0.10238506]
[1738652702597,0.15866327,99302.0,99282.0,0.10238506]
[1738652702816,0.0457,99301.0,99282.0,0.10238506]
[1738652703044,0.00760181,99300.0,99268.0,0.3217]
[1738652703254,0.20901181,99300.0,99282.0,0.151083]
[1738652703466,0.2,99298.0,99272.0,0.201464]
[1738652703676,1.5,99297.0,99268.0,0.3217]
[1738652703893,0.076,99280.0,99268.0,0.201473]
[1738652704339,0.08351408,99280.0,99272.0,0.151099]
[1738652704566,0.08351408,99280.0,99274.0,0.151096]
[1738652704778,0.08351408,99280.0,99257.0,0.151121]
[1738652704779,0.64593248,99280.0,99257.0,0.151121]
[1738652704990,0.64593248,99280.0,99250.0,0.151132]
[1738652705202,0.79607424,99280.0,99240.0,0.0001068]
[1738652705422,0.69368918,99280.0,99250.0,0.24520239]
[1738652705634,0.74233162,99280.0,99263.0,0.201483]
[1738652705843,0.59124462,99280.0,99251.0,0.00133964]
[1738652706056,0.59124462,99280.0,99261.0,0.201488]
[1738652706277,0.59124462,99280.0,99263.0,0.151113]
[1738652706481,0.59124462,99280.0,99264.0,0.151111]
[1738652706688,0.56131081,99280.0,99265.0,0.151109]
[1738652707139,0.56131081,99280.0,99267.0,0.151106]
[1738652707348,0.56131081,99280.0,99268.0,0.151104]
[1738652707552,0.56131081,99280.0,99259.0,0.201492]
[1738652707753,0.56131081,99280.0,99250.0,0.24520239]
[1738652707960,0.56131081,99280.0,99256.0,0.201498]
[1738652708217,0.56131081,99280.0,99263.0,0.151113]
[1738652708433,0.76131081,99280.0,99267.0,0.151107]
[1738652708650,0.76131081,99280.0,99265.0,0.15111]
[1738652708857,0.76131081,99280.0,99262.0,0.201485]
[1738652709068,0.76131081,99280.0,99264.0,0.201481]
[1738652709276,0.74260218,99280.0,99267.0,0.151106]
[1738652709481,0.54260218,99280.0,99267.0,0.151106]
[1738652710194,0.54260218,99280.0,99265.0,0.151109]
[1738652710540,0.54260218,99280.0,99279.0,0.02022407]
[1738652711812,0.46660218,99280.0,99279.0,0.02022407]
[1738652712671,0.56898724,99280.0,99279.0,0.02022407]
[1738652713305,2.06898724,99280.0,99279.0,0.02022407]
[1738652713510,2.26898724,99280.0,99279.0,0.02022407]
[1738652713722,2.16660218,99280.0,99279.0,0.02022407]
[1738652713932,0.68527448,99280.0,99279.0,0.02022407]
[1738652714373,0.78765954,99280.0,99279.0,0.02022407]
[1738652714580,2.28765954,99280.0,99279.0,0.02022407]
[1738652715525,0.78765954,99280.0,99279.0,0.02022407]
[1738652718505,0.86465954,99280.0,99279.0,0.02022407]
[1738652719681,2.39449484,99280.0,99279.0,0.02022407]
[1738652722689,0.89449484,99280.0,99279.0,0.02022407]
[1738652723563,0.77249484,99280.0,99279.0,0.02022407]
[1738652725586,0.92358184,99280.0,99279.0,0.02022407]
[1738652726631,2.42358184,99280.0,99279.0,0.02022407]
[1738652726853,2.42458184,99280.0,99279.0,0.02022407]
[1738652727338,0.92458184,99280.0,99279.0,0.02022407]
[1738652728005,0.82519678,99280.0,99279.0,0.02022407]
[1738652728552,0.06016344,99280.0,99279.0,0.02022407]
[1738652728719,0.05916344,99280.0,99279.0,0.17131307]
[1738652728934,0.05916344,99280.0,99279.0,0.02022407]
[1738652729558,0.01065584,99280.0,99279.0,0.02022407]
[1738652730196,0.00765584,99280.0,99279.0,0.02022407]
[1738652731162,0.00014176,99280.0,99279.0,0.02022407]
[1738652731799,0.00014176,99280.0,99279.0,0.17131307]
[1738652732011,0.00014176,99280.0,99279.0,0.1726526]
[1738652732208,0.00014176,99280.0,99279.0,0.27503766]
[1738652732438,0.00014176,99280.0,99279.0,0.35149813]
[1738652733070,0.00014176,99280.0,99279.0,0.39929813]
[1738652734800,0.00014176,99280.0,99279.0,0.42229813]
[1738652735433,7.6e-07,99280.0,99279.0,0.57229813]
[1738652735856,7.6e-07,99280.0,99279.0,0.90399813]
[1738652736065,0.01872608,99309.0,99308.0,0.229645]
[1738652736203,0.01872608,99309.0,99308.0,0.33203006]
[1738652736392,0.0001067,99310.0,99308.0,0.33203006]
[1738652736612,0.00024843,99310.0,99309.0,0.10372402]
[1738652739646,0.00024843,99310.0,99309.0,0.10238506]
[1738652739850,0.00024843,99310.0,99308.0,0.151045]
[1738652741141,0.00024843,99310.0,99309.0,0.10372411]
[1738652742792,0.00024843,99310.0,99309.0,0.25476711]
[1738652743121,0.00024843,99310.0,99309.0,0.25342806]
[1738652749418,0.00024843,99310.0,99309.0,0.151043]
[1738652751018,0.00024843,99310.0,99309.0,0.25342806]
[1738652753863,0.00024843,99310.0,99309.0,0.35572806]
[1738652754198,0.00024843,99310.0,99309.0,0.40352806]
[1738652755055,4.3e-07,99310.0,99309.0,0.89522806]
[1738652755525,4.3e-07,99310.0,99309.0,1.43782806]
[1738652755730,0.0001068,99329.0,99328.0,0.151014]
[1738652755943,8e-07,99329.0,99328.0,0.8770375]
[1738652756152,8e-07,99329.0,99328.0,0.88569906]
[1738652756573,8e-07,99329.0,99328.0,1.10569906]
[1738652758895,8e-07,99329.0,99328.0,1.09569906]
[1738652759129,8e-07,99329.0,99328.0,1.07269906]
[1738652760216,8e-07,99329.0,99328.0,0.87569906]
[1738652762579,8e-07,99329.0,99328.0,0.57509906]
[1738652763015,8e-07,99329.0,99321.0,0.201366]
[1738652763261,8e-07,99329.0,99323.0,0.151022]
[1738652763474,8e-07,99329.0,99324.0,0.10238506]
[1738652763682,8e-07,99329.0,99327.0,0.151015]
[1738652763888,8e-07,99329.0,99324.0,0.10238506]
[1738652764101,8e-07,99329.0,99310.0,0.16352205]
[1738652764359,8e-07,99329.0,99314.0,0.201379]
[1738652764577,8e-07,99329.0,99300.0,0.16352205]
[1738652764791,0.02386676,99328.0,99307.0,0.10238506]
[1738652765000,0.151022,99324.0,99309.0,0.151042]
[1738652765211,0.00513935,99323.0,99310.0,0.16352205]
[1738652765424,0.00513935,99323.0,99321.0,0.151023]
[1738652765643,0.01872205,99328.0,99311.0,0.10238506]
[1738652765874,0.16973705,99328.0,99310.0,0.16352205]
[1738652766083,0.0051359,99327.0,99311.0,0.201387]
[1738652766288,0.0051359,99327.0,99314.0,0.151034]
[1738652766501,0.02385795,99327.0,99312.0,0.201385]
[1738652766701,0.02385795,99327.0,99310.0,0.26590711]
[1738652766914,0.02385795,99327.0,99316.0,0.151031]
[1738652767153,0.02385795,99327.0,99317.0,0.15103]
[1738652767593,0.01872205,99326.0,99313.0,0.201382]
[1738652767805,0.01872205,99326.0,99324.0,0.15102]
[1738652768863,8e-07,99329.0,99324.0,0.15102]
[1738652769071,8e-07,99329.0,99327.0,0.151015]
[1738652769291,8e-07,99329.0,99328.0,0.10372396]
[1738652769546,8e-07,99329.0,99328.0,0.25372396]
[1738652769775,8e-07,99329.0,99328.0,0.25238506]
[1738652770426,8e-07,99329.0,99328.0,0.27538506]
[1738652773209,8e-07,99329.0,99328.0,0.25238506]
[1738652779432,8e-07,99329.0,99328.0,0.40339906]
[1738652782118,8e-07,99329.0,99328.0,0.40362334]
[1738652782324,8e-07,99329.0,99328.0,0.42662334]
[1738652782950,8e-07,99329.0,99328.0,0.50452334]
[1738652783162,8e-07,99329.0,99328.0,0.55242334]
[1738652783637,8e-07,99329.0,99328.0,0.56242334]
[1738652783848,8e-08,99336.0,99333.0,0.171007]
[1738652784060,5.8e-07,99337.0,99336.0,0.183]
[1738652784277,5.8e-07,99337.0,99336.0,0.29672349]
[1738652784482,5.8e-07,99337.0,99336.0,0.52538506]
[1738652785359,5.8e-07,99337.0,99336.0,0.51538506]
[1738652786803,5.8e-07,99337.0,99336.0,0.28538506]
[1738652787572,8e-08,99341.0,99338.0,0.02]
[1738652787796,7.8e-07,99341.0,99340.0,0.28538506]
[1738652788008,0.0001067,99380.0,99340.0,0.28538506]
[1738652788009,6e-08,99346.0,99345.0,0.320988]
[1738652788175,3.4e-07,99349.0,99348.0,0.323984]
[1738652788387,3.4e-07,99349.0,99348.0,0.42636906]
[1738652790006,3.4e-07,99349.0,99348.0,0.65636906]
[1738652793598,3.4e-07,99349.0,99348.0,0.40336906]
[1738652793813,3.4e-07,99349.0,99348.0,0.25336906]
[1738652794025,3.4e-07,99349.0,99328.0,0.00022428]
[1738652794234,3.4e-07,99349.0,99335.0,0.201338]
[1738652794438,0.0051269,99348.0,99336.0,0.10238506]
[1738652794663,0.0051269,99348.0,99346.0,0.150986]
[1738652794871,3.4e-07,99349.0,99347.0,0.10238506]
[1738652795080,3.4e-07,99349.0,99339.0,0.16352205]
[1738652795291,3.4e-07,99349.0,99317.0,0.08192428]
[1738652795292,3.4e-07,99349.0,99317.0,0.00022428]
[1738652795504,0.0781,99348.0,99335.0,0.201337]
[1738652795720,0.0781,99348.0,99338.0,0.150998]
[1738652795864,0.00512334,99347.0,99338.0,0.150998]
[1738652796083,0.00512334,99347.0,99330.0,0.16366375]
[1738652796307,0.201316,99346.0,99331.0,0.10238506]
[1738652796555,0.00512125,99345.0,99330.0,0.0001417]
[1738652796966,0.150992,99343.0,99330.0,0.0001417]
[1738652797145,0.00512125,99345.0,99330.0,0.0001417]
[1738652797381,0.150998,99339.0,99330.0,0.0001417]
[1738652797591,0.151001,99338.0,99330.0,0.0001417]
[1738652797782,0.00511104,99338.0,99330.0,0.0001417]
[1738652798187,0.151004,99335.0,99330.0,0.0001417]
[1738652798414,0.151003,99336.0,99330.0,0.0001417]
[1738652798603,0.00869127,99334.0,99330.0,0.0001417]
[1738652798822,0.0086923,99335.0,99330.0,0.0001417]
[1738652799027,0.00868853,99333.0,99330.0,0.0001417]
[1738652799215,0.2,99343.0,99330.0,0.0001417]
[1738652799216,0.00869042,99334.0,99330.0,0.0001417]
[1738652799384,0.00868665,99332.0,99330.0,0.0001417]
[1738652799602,0.150994,99342.0,99330.0,0.0001417]
[1738652799797,0.0457,99347.0,99330.0,0.0001417]
[1738652800001,0.00870087,99341.0,99330.0,0.0001417]
[1738652800208,0.151001,99337.0,99330.0,0.0001417]
[1738652800365,0.150998,99339.0,99330.0,0.0001417]
[1738652800580,0.00869523,99338.0,99330.0,0.0001417]
[1738652801214,0.201316,99346.0,99330.0,0.0001417]
[1738652801411,0.00869335,99337.0,99330.0,0.0001417]
[1738652801627,0.00869335,99337.0,99331.0,0.15101]
[1738652801830,0.150992,99343.0,99330.0,0.0001417]
[1738652802076,0.0457,99347.0,99330.0,0.0001417]
[1738652802077,0.00724289,99336.0,99334.0,0.151005]
[1738652802316,0.0457,99347.0,99343.0,0.150991]
[1738652802660,0.01306185,99346.0,99343.0,0.150991]
[1738652802862,0.01306185,99346.0,99344.0,0.15099]
[1738652803073,0.26394634,99353.0,99344.0,0.15099]
[1738652803277,0.01306812,99348.0,99347.0,0.150985]
[1738652803480,0.01306812,99348.0,99331.0,0.10238506]
[1738652803679,0.01306812,99348.0,99344.0,0.150989]
[1738652803909,0.01306812,99348.0,99331.0,0.151009]
[1738652804129,0.01306812,99348.0,99330.0,0.0001417]
[1738652804451,0.150988,99346.0,99330.0,0.0001417]
[1738652804656,0.201321,99344.0,99330.0,0.0001417]
[1738652804853,0.16425349,99345.0,99333.0,0.151006]
[1738652805069,0.01325722,99343.0,99334.0,0.151005]
[1738652805281,0.01326036,99344.0,99331.0,0.201346]
[1738652805406,0.201315,99347.0,99330.0,0.0001417]
[1738652805407,0.01325409,99342.0,99339.0,0.00022407]
[1738652805616,0.150995,99341.0,99339.0,0.00022407]
[1738652805826,0.16425297,99341.0,99339.0,0.00022407]
[1738652806061,0.01325797,99341.0,99339.0,0.00022407]
[1738652806261,0.150995,99341.0,99339.0,0.00022407]
[1738652806492,0.01325484,99340.0,99339.0,0.00022407]
[1738652808158,0.13535484,99340.0,99339.0,0.00022407]
[1738652809851,0.2377399,99340.0,99339.0,0.00022407]
[1738652810050,0.65168624,99340.0,99339.0,0.00022407]
[1738652810677,0.30101,99331.0,99330.0,0.0001417]
[1738652810884,0.52849506,99331.0,99330.0,0.0001417]
[1738652811088,2.13610343,99331.0,99330.0,0.0001417]
[1738652812329,2.04798632,99331.0,99330.0,0.0011417]
[1738652812546,2.33936756,99331.0,99330.0,0.0011417]
[1738652812961,2.38790771,99331.0,99330.0,0.0011417]
[1738652813164,2.39790771,99331.0,99330.0,0.0011417]
[1738652814033,2.38790771,99331.0,99330.0,0.0011417]
[1738652814240,0.88790771,99331.0,99330.0,0.0011417]
[1738652814662,2.38790771,99331.0,99330.0,0.0011417]
[1738652814928,2.29852647,99331.0,99330.0,0.0011417]
[1738652815323,2.33152647,99331.0,99330.0,0.0011417]
[1738652816167,0.446313,99329.0,99328.0,9.8e-07]
[1738652816366,0.446313,99329.0,99265.0,0.0799]
[1738652816367,0.44933,99318.0,99271.0,0.201466]
[1738652816620,0.83934909,99318.0,99271.0,0.201466]
[1738652816831,2.33934909,99318.0,99271.0,0.201466]
[1738652817013,2.33934909,99318.0,99276.0,0.151092]
[1738652817370,2.41771714,99318.0,99276.0,0.151092]
[1738652817587,2.61771714,99318.0,99277.0,0.15109]
[1738652817926,2.72021186,99318.0,99277.0,0.15109]
[1738652818347,2.72021186,99318.0,99317.0,0.00122428]
[1738652818348,2.59371714,99318.0,99317.0,0.00122428]
[1738652818764,2.56388924,99318.0,99317.0,0.00122428]
[1738652818971,0.91388924,99318.0,99317.0,0.00122428]
[1738652819180,0.83448924,99318.0,99317.0,0.00122428]
[1738652819391,0.84348924,99318.0,99317.0,0.00122428]
[1738652819597,0.79348924,99318.0,99317.0,0.00122428]
[1738652819750,0.76363727,99318.0,99317.0,0.00122428]
[1738652819970,0.75463727,99318.0,99317.0,0.00022428]
[1738652820185,0.74563727,99318.0,99317.0,0.00022428]
[1738652820379,0.74763727,99318.0,99317.0,0.00022428]
[1738652820580,0.64525221,99318.0,99317.0,0.00022428]
[1738652820852,0.59735221,99318.0,99317.0,0.00022428]
[1738652821066,0.29632221,99318.0,99317.0,0.00022428]
[1738652821242,0.29832221,99318.0,99317.0,0.00022428]
[1738652821727,0.30232221,99318.0,99317.0,0.00022428]
[1738652821930,0.29632221,99318.0,99317.0,0.00022428]
[1738652822137,0.29632221,99318.0,99317.0,0.00222428]
[1738652822318,0.03237587,99318.0,99317.0,0.00222428]
[1738652822549,0.03237587,99318.0,99317.0,0.00122428]
[1738652822763,0.04857541,99333.0,99317.0,0.00122428]
[1738652822969,0.151029,99319.0,99317.0,0.00122428]